[Event "*** Titled Tuesday Blitz"]
[Site "Chess.com"]
[Date "2020.03.03"]
[Round "5"]
[White "Man-Chuk"]
[Black "nonscitis"]
[Result "1/2-1/2"]
[WhiteElo "2785"]
[BlackElo "2596"]
[TimeControl "180+1"]
[EndTime "13:54:43 PST"]
[Termination "Game drawn by repetition"]

1. e4 {[%clk 0:02:45.5]} 1... c5 {[%clk 0:02:59.3]} 2. Nf3 {[%clk 0:02:44.7]}
2... Nc6 {[%clk 0:02:59.4]} 3. Bb5 {[%clk 0:02:43.7]} 3... e6 {[%clk 0:02:58.6]}
4. O-O {[%clk 0:02:41.2]} 4... Nge7 {[%clk 0:02:56.8]} 5. c3 {[%clk 0:02:41.7]}
5... a6 {[%clk 0:02:51.6]} 6. Ba4 {[%clk 0:02:41.6]} 6... d5 {[%clk 0:02:45.7]}
7. exd5 {[%clk 0:02:40.6]} 7... Nxd5 {[%clk 0:02:45.1]} 8. d4 {[%clk 0:02:40.2]}
8... b5 {[%clk 0:02:42.8]} 9. Bc2 {[%clk 0:02:40.7]} 9... Be7 {[%clk 0:02:36]}
10. dxc5 {[%clk 0:02:36.6]} 10... Bxc5 {[%clk 0:02:35.9]} 11. Nbd2 {[%clk
0:02:36.1]} 11... O-O {[%clk 0:02:31]} 12. Ne4 {[%clk 0:02:24.4]} 12... Be7
{[%clk 0:02:30.5]} 13. Qd3 {[%clk 0:02:24.5]} 13... f5 {[%clk 0:02:20.7]} 14.
Ng3 {[%clk 0:01:57.4]} 14... Bf6 {[%clk 0:02:18.7]} 15. Nh5 {[%clk 0:01:54.9]}
15... Ne5 {[%clk 0:02:08.5]} 16. Nxf6+ {[%clk 0:01:51.7]} 16... Qxf6 {[%clk
0:02:07.1]} 17. Nxe5 {[%clk 0:01:52.1]} 17... Qxe5 {[%clk 0:02:08]} 18. Bg5
{[%clk 0:01:41.1]} 18... Bb7 {[%clk 0:02:02.8]} 19. Rfe1 {[%clk 0:01:34.6]}
19... Qd6 {[%clk 0:02:02.4]} 20. Rad1 {[%clk 0:01:33.1]} 20... h6 {[%clk
0:02:00.9]} 21. Bc1 {[%clk 0:01:32.1]} 21... Qc6 {[%clk 0:01:59.6]} 22. Qg3
{[%clk 0:01:30.7]} 22... Kh7 {[%clk 0:01:47.6]} 23. h4 {[%clk 0:01:28.3]} 23...
Nf6 {[%clk 0:01:41.1]} 24. Rd6 {[%clk 0:01:25]} 24... Qc7 {[%clk 0:01:24.6]} 25.
Rexe6 {[%clk 0:01:20.8]} 25... Be4 {[%clk 0:00:53.6]} 26. Bxe4 {[%clk
0:01:00.5]} 26... fxe4 {[%clk 0:00:54.5]} 27. h5 {[%clk 0:00:49]} 27... Qf7
{[%clk 0:00:43.9]} 28. Qh3 {[%clk 0:00:26.2]} 28... Qxh5 {[%clk 0:00:39.7]} 29.
Qxh5 {[%clk 0:00:24.3]} 29... Nxh5 {[%clk 0:00:39.8]} 30. Bxh6 {[%clk 0:00:23]}
30... Rf6 {[%clk 0:00:34.8]} 31. Be3 {[%clk 0:00:20.5]} 31... a5 {[%clk
0:00:31.9]} 32. Rxf6 {[%clk 0:00:16.2]} 32... Nxf6 {[%clk 0:00:31.3]} 33. Bd4
{[%clk 0:00:16]} 33... Kg6 {[%clk 0:00:25.1]} 34. Rb6 {[%clk 0:00:16]} 34... b4
{[%clk 0:00:23.6]} 35. c4 {[%clk 0:00:15.9]} 35... Rd8 {[%clk 0:00:18.4]} 36.
Bxf6 {[%clk 0:00:14.5]} 36... gxf6 {[%clk 0:00:18.3]} 37. Rb5 {[%clk 0:00:14.4]}
37... Rd2 {[%clk 0:00:17.6]} 38. Rxa5 {[%clk 0:00:13]} 38... Rxb2 {[%clk
0:00:17.5]} 39. g4 {[%clk 0:00:10.5]} 39... Rc2 {[%clk 0:00:16.6]} 40. c5 {[%clk
0:00:10.4]} 40... Rb2 {[%clk 0:00:13.7]} 41. c6 {[%clk 0:00:10.3]} 41... Rc2
{[%clk 0:00:13.6]} 42. Rb5 {[%clk 0:00:08.1]} 42... Rxc6 {[%clk 0:00:12.7]} 43.
Rxb4 {[%clk 0:00:08.6]} 43... Rc2 {[%clk 0:00:12.2]} 44. a4 {[%clk 0:00:04.9]}
44... e3 {[%clk 0:00:12.1]} 45. fxe3 {[%clk 0:00:04.7]} 45... Kg5 {[%clk
0:00:12.5]} 46. Kf1 {[%clk 0:00:04.3]} 46... Ra2 {[%clk 0:00:12.6]} 47. Ke1
{[%clk 0:00:04.8]} 47... Kh4 {[%clk 0:00:12.8]} 48. Kd1 {[%clk 0:00:05.4]} 48...
Kg3 {[%clk 0:00:12.9]} 49. Kc1 {[%clk 0:00:05.2]} 49... Kf3 {[%clk 0:00:13]} 50.
Kb1 {[%clk 0:00:05.7]} 50... Rd2 {[%clk 0:00:12.6]} 51. Rf4+ {[%clk 0:00:04.3]}
51... Kxe3 {[%clk 0:00:12.2]} 52. Rxf6 {[%clk 0:00:05.2]} 52... Rd4 {[%clk
0:00:12.3]} 53. a5 {[%clk 0:00:05.3]} 53... Rxg4 {[%clk 0:00:11.8]} 54. Kb2
{[%clk 0:00:05.2]} 54... Kd4 {[%clk 0:00:10.9]} 55. Rc6 {[%clk 0:00:02.2]} 55...
Kd5 {[%clk 0:00:10.6]} 56. Rc3 {[%clk 0:00:01.1]} 56... Rg2+ {[%clk 0:00:10.3]}
57. Kb3 {[%clk 0:00:01.2]} 57... Rg7 {[%clk 0:00:11.2]} 58. Kb4 {[%clk
0:00:01.6]} 58... Rb7+ {[%clk 0:00:11.2]} 59. Ka4 {[%clk 0:00:02.5]} 59... Kd6
{[%clk 0:00:09.7]} 60. Rc8 {[%clk 0:00:03]} 60... Rc7 {[%clk 0:00:09.7]} 61.
Rd8+ {[%clk 0:00:02.7]} 61... Kc6 {[%clk 0:00:08.8]} 62. a6 {[%clk 0:00:02.9]}
62... Kb6 {[%clk 0:00:08.9]} 63. Ra8 {[%clk 0:00:03.5]} 63... Ra7 {[%clk
0:00:08.2]} 64. Rh8 {[%clk 0:00:04]} 64... Rxa6+ {[%clk 0:00:08.3]} 65. Kb4
{[%clk 0:00:04.1]} 65... Ka7 {[%clk 0:00:09.2]} 66. Rh7+ {[%clk 0:00:04]} 66...
Ka8 {[%clk 0:00:09.3]} 67. Kb5 {[%clk 0:00:04.3]} 67... Rd6 {[%clk 0:00:09.4]}
68. Kc5 {[%clk 0:00:04.3]} 68... Ra6 {[%clk 0:00:09.1]} 69. Kb5 {[%clk
0:00:03.8]} 69... Rd6 {[%clk 0:00:08.8]} 70. Rc7 {[%clk 0:00:04.1]} 70... Kb8
{[%clk 0:00:08.2]} 71. Rc6 {[%clk 0:00:03.8]} 71... Rd5+ {[%clk 0:00:08]} 72.
Kb6 {[%clk 0:00:03.7]} 72... Rd7 {[%clk 0:00:08.4]} 73. Rh6 {[%clk 0:00:03.2]}
73... Rb7+ {[%clk 0:00:08.3]} 74. Ka6 {[%clk 0:00:03.2]} 74... Ra7+ {[%clk
0:00:08.2]} 75. Kb6 {[%clk 0:00:03.6]} 75... Rb7+ {[%clk 0:00:09.1]} 76. Kc6
{[%clk 0:00:04.1]} 76... Rc7+ {[%clk 0:00:08.9]} 77. Kb6 {[%clk 0:00:02]} 77...
Rb7+ {[%clk 0:00:08.7]} 1/2-1/2

[Event "*** Titled Tuesday Blitz"]
[Site "Chess.com"]
[Date "2020.03.03"]
[Round "6"]
[White "elohunter1999"]
[Black "2165149677570"]
[Result "1-0"]
[WhiteElo "2442"]
[BlackElo "2242"]
[TimeControl "180+1"]
[EndTime "13:57:03 PST"]
[Termination "elohunter1999 won by resignation"]

1. e4 {[%clk 0:03:00.9]} 1... c5 {[%clk 0:02:59.4]} 2. Nf3 {[%clk 0:02:58.8]}
2... Nc6 {[%clk 0:02:59.7]} 3. d4 {[%clk 0:02:58.9]} 3... cxd4 {[%clk
0:03:00.6]} 4. Nxd4 {[%clk 0:02:59.4]} 4... Nf6 {[%clk 0:03:01.2]} 5. Nc3 {[%clk
0:02:59.7]} 5... e6 {[%clk 0:03:01.3]} 6. Nxc6 {[%clk 0:02:59.5]} 6... bxc6
{[%clk 0:03:01.2]} 7. e5 {[%clk 0:03:00.1]} 7... Nd5 {[%clk 0:03:01.7]} 8. Ne4
{[%clk 0:03:00]} 8... Qc7 {[%clk 0:03:01.8]} 9. f4 {[%clk 0:03:00.4]} 9... Qb6
{[%clk 0:03:02.3]} 10. c4 {[%clk 0:03:00.3]} 10... Bb4+ {[%clk 0:03:01.5]} 11.
Ke2 {[%clk 0:03:00.6]} 11... f5 {[%clk 0:03:00.5]} 12. exf6 {[%clk 0:03:00.6]}
12... Nxf6 {[%clk 0:02:59.9]} 13. Be3 {[%clk 0:03:01.1]} 13... Qa6 {[%clk
0:02:37.6]} 14. Nxf6+ {[%clk 0:02:58.5]} 14... gxf6 {[%clk 0:02:38.5]} 15. Kf2
{[%clk 0:02:59.1]} 15... Qa5 {[%clk 0:02:15.4]} 16. a3 {[%clk 0:02:55.3]} 16...
Be7 {[%clk 0:02:09]} 17. b4 {[%clk 0:02:54.9]} 17... Qf5 {[%clk 0:02:04.7]} 18.
Bd3 {[%clk 0:02:54.4]} 1-0

[Event "*** Titled Tuesday Blitz"]
[Site "Chess.com"]
[Date "2020.03.03"]
[Round "6"]
[White "ChainsOfFantasia"]
[Black "vlad_Sid"]
[Result "0-1"]
[WhiteElo "2541"]
[BlackElo "2697"]
[TimeControl "180+1"]
[EndTime "13:58:20 PST"]
[Termination "vlad_Sid won by resignation"]

1. d4 {[%clk 0:03:00.9]} 1... Nf6 {[%clk 0:02:59.4]} 2. Nf3 {[%clk 0:03:00.8]}
2... c5 {[%clk 0:02:59.5]} 3. d5 {[%clk 0:02:58.3]} 3... b5 {[%clk 0:02:59.2]}
4. c3 {[%clk 0:02:57.6]} 4... g6 {[%clk 0:02:57.6]} 5. a4 {[%clk 0:02:56.1]}
5... b4 {[%clk 0:02:57.1]} 6. g3 {[%clk 0:02:34.9]} 6... Bg7 {[%clk 0:02:56.3]}
7. Bg2 {[%clk 0:02:35]} 7... d6 {[%clk 0:02:56.5]} 8. O-O {[%clk 0:02:34.5]}
8... O-O {[%clk 0:02:56.9]} 9. cxb4 {[%clk 0:02:31.4]} 9... cxb4 {[%clk
0:02:56.3]} 10. Re1 {[%clk 0:02:25]} 10... a5 {[%clk 0:02:52.3]} 11. e4 {[%clk
0:02:24.6]} 11... Nbd7 {[%clk 0:02:51.7]} 12. Nbd2 {[%clk 0:02:24.1]} 12... Ba6
{[%clk 0:02:50.3]} 13. Bf1 {[%clk 0:02:23.7]} 13... Qc8 {[%clk 0:02:45.3]} 14.
Bxa6 {[%clk 0:02:15.6]} 14... Qxa6 {[%clk 0:02:46.2]} 15. Nd4 {[%clk 0:02:13.1]}
15... Ne5 {[%clk 0:02:41.6]} 16. N2f3 {[%clk 0:02:07.3]} 16... Nxf3+ {[%clk
0:02:36.5]} 17. Qxf3 {[%clk 0:02:06.3]} 17... Nxd5 {[%clk 0:02:16.6]} 18. exd5
{[%clk 0:02:07.2]} 18... Bxd4 {[%clk 0:02:15.3]} 19. Rxe7 {[%clk 0:02:06.6]}
19... Rae8 {[%clk 0:02:08.5]} 20. Re4 {[%clk 0:01:57.3]} 20... Qc4 {[%clk
0:02:01.7]} 21. Be3 {[%clk 0:01:55.8]} 21... Qxd5 {[%clk 0:01:58.5]} 22. Bxd4
{[%clk 0:01:49.8]} 22... Rxe4 {[%clk 0:01:54.1]} 23. Qf6 {[%clk 0:01:49.5]}
23... Qxd4 {[%clk 0:01:52.9]} 0-1

[Event "*** Titled Tuesday Blitz"]
[Site "Chess.com"]
[Date "2020.03.03"]
[Round "6"]
[White "Keithonsky"]
[Black "secretsuperstar7"]
[Result "0-1"]
[WhiteElo "2421"]
[BlackElo "2220"]
[TimeControl "180+1"]
[EndTime "13:59:29 PST"]
[Termination "secretsuperstar7 won by resignation"]

1. d4 {[%clk 0:03:00.9]} 1... Nf6 {[%clk 0:02:56.9]} 2. c4 {[%clk 0:03:01.2]}
2... e6 {[%clk 0:02:56.3]} 3. Nf3 {[%clk 0:03:01.4]} 3... d5 {[%clk 0:02:51.9]}
4. g3 {[%clk 0:03:01.4]} 4... dxc4 {[%clk 0:02:50.3]} 5. Bg2 {[%clk 0:03:01.7]}
5... a6 {[%clk 0:02:49.6]} 6. O-O {[%clk 0:03:02.2]} 6... Nc6 {[%clk 0:02:48.8]}
7. e3 {[%clk 0:03:02.2]} 7... Rb8 {[%clk 0:02:47]} 8. Qe2 {[%clk 0:03:02.7]}
8... b5 {[%clk 0:02:46.3]} 9. Rd1 {[%clk 0:03:03.1]} 9... Be7 {[%clk 0:02:42.1]}
10. e4 {[%clk 0:03:03.4]} 10... O-O {[%clk 0:02:39]} 11. a4 {[%clk 0:03:01.7]}
11... Bb7 {[%clk 0:02:31.3]} 12. Nc3 {[%clk 0:02:55.3]} 12... b4 {[%clk
0:02:20.7]} 13. e5 {[%clk 0:02:51.1]} 13... bxc3 {[%clk 0:01:56.1]} 14. exf6
{[%clk 0:02:50.8]} 14... c2 {[%clk 0:01:55.7]} 15. Qxc2 {[%clk 0:02:37.2]} 15...
Bxf6 {[%clk 0:01:54.1]} 16. Qxc4 {[%clk 0:02:36.8]} 16... Na5 {[%clk 0:01:52.6]}
17. Qc3 {[%clk 0:02:34.7]} 17... c5 {[%clk 0:01:49]} 18. Bf4 {[%clk 0:02:23.6]}
18... cxd4 {[%clk 0:01:46]} 19. Nxd4 {[%clk 0:02:08.5]} 19... Rc8 {[%clk
0:01:43.8]} 20. Qb4 {[%clk 0:02:00.4]} 20... Bxg2 {[%clk 0:01:19.4]} 21. Kxg2
{[%clk 0:02:01.1]} 21... Rc4 {[%clk 0:01:12.9]} 22. Nxe6 {[%clk 0:01:46.2]}
22... Qa8+ {[%clk 0:01:10.5]} 0-1

[Event "*** Titled Tuesday Blitz"]
[Site "Chess.com"]
[Date "2020.03.03"]
[Round "6"]
[White "ChessBitl"]
[Black "gemarin"]
[Result "1-0"]
[WhiteElo "2309"]
[BlackElo "2093"]
[TimeControl "180+1"]
[EndTime "13:59:45 PST"]
[Termination "ChessBitl won by resignation"]

1. e4 {[%clk 0:03:00.3]} 1... c5 {[%clk 0:02:58.7]} 2. Nf3 {[%clk 0:02:59.8]}
2... d6 {[%clk 0:02:58.6]} 3. d4 {[%clk 0:03:00.1]} 3... cxd4 {[%clk 0:02:58.7]}
4. Nxd4 {[%clk 0:03:00.7]} 4... Nf6 {[%clk 0:02:57.6]} 5. f3 {[%clk 0:03:01.1]}
5... e5 {[%clk 0:02:54.7]} 6. Bb5+ {[%clk 0:03:00.1]} 6... Nbd7 {[%clk 0:02:47]}
7. Nf5 {[%clk 0:02:59.4]} 7... a6 {[%clk 0:02:46.1]} 8. Bxd7+ {[%clk 0:02:58]}
8... Qxd7 {[%clk 0:02:45.6]} 9. Nc3 {[%clk 0:02:57.7]} 9... h6 {[%clk
0:02:42.3]} 10. Be3 {[%clk 0:02:52.1]} 10... g6 {[%clk 0:02:40.2]} 11. Ng3
{[%clk 0:02:49.4]} 11... b5 {[%clk 0:02:31.7]} 12. Qd2 {[%clk 0:02:45.7]} 12...
Bb7 {[%clk 0:02:28.9]} 13. O-O-O {[%clk 0:02:44.2]} 13... b4 {[%clk 0:02:28.3]}
14. Nce2 {[%clk 0:02:42.5]} 14... d5 {[%clk 0:02:22.8]} 15. exd5 {[%clk
0:02:36.7]} 15... Nxd5 {[%clk 0:02:21.9]} 16. Kb1 {[%clk 0:02:36.1]} 16... Qe6
{[%clk 0:02:14.6]} 17. Ne4 {[%clk 0:02:31.1]} 17... Nxe3 {[%clk 0:02:12.4]} 18.
Qxe3 {[%clk 0:02:29.3]} 18... Be7 {[%clk 0:02:11.1]} 19. Nc5 {[%clk 0:02:20.3]}
19... Bxc5 {[%clk 0:02:00.4]} 20. Qxc5 {[%clk 0:02:20.1]} 20... Qe7 {[%clk
0:01:59.7]} 21. Qb6 {[%clk 0:02:08.2]} 21... Kf8 {[%clk 0:01:54]} 22. Rd6 {[%clk
0:02:04]} 22... Kg7 {[%clk 0:01:51.2]} 23. Rhd1 {[%clk 0:02:03.1]} 23... Bc8
{[%clk 0:01:38.7]} 24. Qxb4 {[%clk 0:01:51.3]} 24... Bf5 {[%clk 0:01:36.4]} 25.
Rxg6+ {[%clk 0:01:47.9]} 25... Bxg6 {[%clk 0:01:33.2]} 26. Qxe7 {[%clk 0:01:47]}
26... Rhe8 {[%clk 0:01:31.5]} 27. Qd6 {[%clk 0:01:43.4]} 27... Rac8 {[%clk
0:01:25.2]} 28. Rd2 {[%clk 0:01:38.6]} 28... Re6 {[%clk 0:01:12.5]} 29. Qd7
{[%clk 0:01:35.9]} 29... Rec6 {[%clk 0:01:09.7]} 30. Nc3 {[%clk 0:01:34.1]} 1-0

[Event "*** Titled Tuesday Blitz"]
[Site "Chess.com"]
[Date "2020.03.03"]
[Round "6"]
[White "adricalderon8"]
[Black "Shahinyan_ChessMood"]
[Result "0-1"]
[WhiteElo "2429"]
[BlackElo "2620"]
[TimeControl "180+1"]
[EndTime "13:59:50 PST"]
[Termination "Shahinyan_ChessMood won by resignation"]

1. e4 {[%clk 0:03:00.9]} 1... e6 {[%clk 0:02:58.7]} 2. d4 {[%clk 0:03:00.3]}
2... d5 {[%clk 0:02:59.6]} 3. Nc3 {[%clk 0:03:00.9]} 3... Bb4 {[%clk 0:02:58.7]}
4. e5 {[%clk 0:03:00.8]} 4... Ne7 {[%clk 0:02:58.5]} 5. a3 {[%clk 0:02:48.7]}
5... Bxc3+ {[%clk 0:02:54.8]} 6. bxc3 {[%clk 0:02:49.6]} 6... c5 {[%clk
0:02:54]} 7. Qg4 {[%clk 0:02:48.2]} 7... Qc7 {[%clk 0:02:52.8]} 8. Qxg7 {[%clk
0:02:39.5]} 8... Rg8 {[%clk 0:02:52]} 9. Qxh7 {[%clk 0:02:40.2]} 9... cxd4
{[%clk 0:02:52.8]} 10. Ne2 {[%clk 0:02:40.8]} 10... dxc3 {[%clk 0:02:52.8]} 11.
f4 {[%clk 0:02:35.2]} 11... Nbc6 {[%clk 0:02:50.1]} 12. h4 {[%clk 0:02:33.2]}
12... Bd7 {[%clk 0:02:44.8]} 13. h5 {[%clk 0:02:33]} 13... d4 {[%clk 0:02:43.5]}
14. Qd3 {[%clk 0:02:31.3]} 14... O-O-O {[%clk 0:02:44]} 15. h6 {[%clk
0:02:30.6]} 15... Be8 {[%clk 0:02:41.8]} 16. h7 {[%clk 0:02:29.8]} 16... Rh8
{[%clk 0:02:41.5]} 17. g4 {[%clk 0:02:07.4]} 17... f6 {[%clk 0:02:34]} 18. exf6
{[%clk 0:02:07.4]} 18... Bg6 {[%clk 0:02:34.4]} 19. Qf3 {[%clk 0:02:04.1]} 19...
Nd5 {[%clk 0:02:31.3]} 20. Bg2 {[%clk 0:01:57.8]} 20... Bxc2 {[%clk 0:02:29.5]}
21. f5 {[%clk 0:01:57.5]} 21... d3 {[%clk 0:02:20.2]} 22. fxe6 {[%clk
0:01:49.8]} 22... Nxf6 {[%clk 0:02:12.4]} 23. Qxf6 {[%clk 0:01:47.7]} 23... d2+
{[%clk 0:02:12.5]} 24. Bxd2 {[%clk 0:01:46.4]} 24... cxd2+ {[%clk 0:02:13.4]}
25. Kf1 {[%clk 0:01:46.6]} 25... Rdf8 {[%clk 0:02:13.9]} 26. g5 {[%clk 0:01:43]}
26... Rxf6+ {[%clk 0:02:00.3]} 27. gxf6 {[%clk 0:01:43.1]} 27... Bd3 {[%clk
0:02:01.2]} 28. Bh3 {[%clk 0:01:21.4]} 28... Qf4+ {[%clk 0:01:57.3]} 29. Kg2
{[%clk 0:01:17.7]} 29... Be4+ {[%clk 0:01:48.9]} 30. Kg1 {[%clk 0:01:16.5]}
30... Qe3+ {[%clk 0:01:49.4]} 31. Kf1 {[%clk 0:01:14.8]} 31... Qf3+ {[%clk
0:01:49.6]} 32. Kg1 {[%clk 0:01:13.2]} 32... Qxh1+ {[%clk 0:01:50.5]} 33. Kf2
{[%clk 0:01:13.7]} 33... Qh2+ {[%clk 0:01:50.8]} 34. Ke3 {[%clk 0:01:13.9]}
34... Qxh3+ {[%clk 0:01:49.7]} 35. Kxe4 {[%clk 0:01:14.8]} 35... Qxe6+ {[%clk
0:01:50.3]} 36. Kf3 {[%clk 0:01:15.2]} 0-1

[Event "*** Titled Tuesday Blitz"]
[Site "Chess.com"]
[Date "2020.03.03"]
[Round "6"]
[White "MaxLeto"]
[Black "MiroMiljkovic"]
[Result "0-1"]
[WhiteElo "2402"]
[BlackElo "2569"]
[TimeControl "180+1"]
[EndTime "13:59:59 PST"]
[Termination "MiroMiljkovic won on time"]

1. g4 {[%clk 0:03:00.9]} 1... e5 {[%clk 0:02:54.3]} 2. h4 {[%clk 0:03:00.5]}
2... d5 {[%clk 0:02:53]} 3. g5 {[%clk 0:02:59.2]} 3... Nc6 {[%clk 0:02:48.8]} 4.
d3 {[%clk 0:02:55]} 4... Bc5 {[%clk 0:02:44.8]} 5. Nc3 {[%clk 0:02:50.4]} 5...
Nge7 {[%clk 0:02:44.2]} 6. Bg2 {[%clk 0:02:42.8]} 6... O-O {[%clk 0:02:44.1]} 7.
e4 {[%clk 0:02:39.1]} 7... Be6 {[%clk 0:02:40.6]} 8. exd5 {[%clk 0:01:42.8]}
8... Nxd5 {[%clk 0:02:38]} 9. Ne4 {[%clk 0:01:42.4]} 9... Bb6 {[%clk 0:02:34.9]}
10. Ne2 {[%clk 0:01:31.8]} 10... f5 {[%clk 0:02:35]} 11. gxf6 {[%clk 0:01:29.1]}
11... Nxf6 {[%clk 0:02:35.2]} 12. N2g3 {[%clk 0:01:24.7]} 12... Ng4 {[%clk
0:02:32.4]} 13. Bg5 {[%clk 0:00:54.1]} 13... Qd7 {[%clk 0:02:32.3]} 14. Rf1
{[%clk 0:00:46.6]} 14... h6 {[%clk 0:02:32.7]} 15. Bd2 {[%clk 0:00:40.1]} 15...
Qe7 {[%clk 0:02:32.2]} 16. h5 {[%clk 0:00:35.8]} 16... Qh4 {[%clk 0:02:31.1]}
17. Rh1 {[%clk 0:00:27.1]} 17... Qe7 {[%clk 0:02:31.6]} 18. Rf1 {[%clk
0:00:25.3]} 18... Nh2 {[%clk 0:02:31.2]} 19. Rh1 {[%clk 0:00:23.2]} 19... Bg4
{[%clk 0:02:31.8]} 20. Qc1 {[%clk 0:00:03.4]} 20... Nf3+ {[%clk 0:02:31.5]} 21.
Bxf3 {[%clk 0:00:03.4]} 21... Bxf3 {[%clk 0:02:32.4]} 22. Rg1 {[%clk 0:00:03.6]}
22... Qh4 {[%clk 0:02:25.7]} 23. Bxh6 {[%clk 0:00:02.8]} 23... Bxe4 {[%clk
0:02:21.6]} 24. Nxe4 {[%clk 0:00:02.5]} 24... Bxf2+ {[%clk 0:02:21.5]} 25. Ke2
{[%clk 0:00:01.3]} 25... Qxh5+ {[%clk 0:02:17.8]} 0-1

[Event "*** Titled Tuesday Blitz"]
[Site "Chess.com"]
[Date "2020.03.03"]
[Round "6"]
[White "VALPARAISO37"]
[Black "lelya96"]
[Result "1-0"]
[WhiteElo "2407"]
[BlackElo "2291"]
[TimeControl "180+1"]
[EndTime "14:00:02 PST"]
[Termination "VALPARAISO37 won by resignation"]

1. d4 {[%clk 0:03:00.9]} 1... Nf6 {[%clk 0:02:59.3]} 2. c4 {[%clk 0:03:01]} 2...
e6 {[%clk 0:02:59.9]} 3. Nc3 {[%clk 0:03:01.2]} 3... Bb4 {[%clk 0:02:59.8]} 4.
a3 {[%clk 0:03:01.9]} 4... Bxc3+ {[%clk 0:02:59.3]} 5. bxc3 {[%clk 0:03:02.6]}
5... d5 {[%clk 0:02:59.8]} 6. e3 {[%clk 0:03:03]} 6... c5 {[%clk 0:02:58.6]} 7.
Bd3 {[%clk 0:03:02.4]} 7... O-O {[%clk 0:02:58.1]} 8. Ne2 {[%clk 0:03:02]} 8...
Nc6 {[%clk 0:02:58.2]} 9. O-O {[%clk 0:03:00.9]} 9... b6 {[%clk 0:02:58.6]} 10.
f3 {[%clk 0:02:58.5]} 10... Na5 {[%clk 0:02:55.9]} 11. cxd5 {[%clk 0:02:57.7]}
11... exd5 {[%clk 0:02:55]} 12. Ng3 {[%clk 0:02:56.5]} 12... Re8 {[%clk
0:02:48.8]} 13. a4 {[%clk 0:02:55.4]} 13... c4 {[%clk 0:02:47.8]} 14. Bc2 {[%clk
0:02:53.7]} 14... Bd7 {[%clk 0:02:42]} 15. e4 {[%clk 0:02:50.2]} 15... dxe4
{[%clk 0:02:39]} 16. fxe4 {[%clk 0:02:50]} 16... Nb3 {[%clk 0:02:14.7]} 17. Bg5
{[%clk 0:02:47.5]} 17... Nxa1 {[%clk 0:02:12.9]} 18. Qxa1 {[%clk 0:02:41]} 18...
Qc7 {[%clk 0:02:03.4]} 19. Bxf6 {[%clk 0:02:28.2]} 19... gxf6 {[%clk 0:02:03.2]}
20. Nh5 {[%clk 0:02:27.9]} 20... Kh8 {[%clk 0:01:44.8]} 21. Nxf6 {[%clk
0:02:26.9]} 21... Re6 {[%clk 0:01:22.1]} 22. Qc1 {[%clk 0:02:25.3]} 22... Rxf6
{[%clk 0:01:06.3]} 23. Rxf6 {[%clk 0:02:24]} 23... Be6 {[%clk 0:00:47.4]} 24. e5
{[%clk 0:02:13.9]} 24... Qd8 {[%clk 0:00:31.8]} 25. Rh6 {[%clk 0:02:07]} 25...
Kg7 {[%clk 0:00:18.5]} 26. Qf4 {[%clk 0:02:02.5]} 26... Kf8 {[%clk 0:00:17.1]}
27. Rxe6 {[%clk 0:01:58.7]} 27... Qd5 {[%clk 0:00:15.7]} 28. Qh6+ {[%clk
0:01:57.8]} 28... Kg8 {[%clk 0:00:14.2]} 29. Bxh7+ {[%clk 0:01:57]} 1-0

[Event "*** Titled Tuesday Blitz"]
[Site "Chess.com"]
[Date "2020.03.03"]
[Round "6"]
[White "TigrVShlyape"]
[Black "moro182"]
[Result "1-0"]
[WhiteElo "2894"]
[BlackElo "2700"]
[TimeControl "180+1"]
[EndTime "14:00:12 PST"]
[Termination "TigrVShlyape won by checkmate"]

1. d4 {[%clk 0:03:00.9]} 1... Nf6 {[%clk 0:02:59.7]} 2. Nf3 {[%clk 0:02:59.1]}
2... d5 {[%clk 0:02:58.9]} 3. Bf4 {[%clk 0:02:58.9]} 3... c5 {[%clk 0:02:55.3]}
4. e3 {[%clk 0:02:58.9]} 4... Nc6 {[%clk 0:02:55.5]} 5. Nbd2 {[%clk 0:02:58.3]}
5... e6 {[%clk 0:02:55.7]} 6. c3 {[%clk 0:02:58.1]} 6... Bd6 {[%clk 0:02:55.9]}
7. Bg3 {[%clk 0:02:58]} 7... O-O {[%clk 0:02:56.4]} 8. Bb5 {[%clk 0:02:57.7]}
8... Be7 {[%clk 0:02:56.7]} 9. Bd3 {[%clk 0:02:54.4]} 9... c4 {[%clk 0:02:56.9]}
10. Bc2 {[%clk 0:02:54]} 10... b5 {[%clk 0:02:57.4]} 11. a3 {[%clk 0:02:53.7]}
11... a5 {[%clk 0:02:51.8]} 12. e4 {[%clk 0:02:53.5]} 12... dxe4 {[%clk
0:02:51]} 13. Nxe4 {[%clk 0:02:53]} 13... Nxe4 {[%clk 0:02:46.2]} 14. Bxe4
{[%clk 0:02:52.3]} 14... Bb7 {[%clk 0:02:46.6]} 15. h3 {[%clk 0:02:04.6]} 15...
f5 {[%clk 0:02:38]} 16. Bc2 {[%clk 0:02:01.5]} 16... Bf6 {[%clk 0:02:35.7]} 17.
O-O {[%clk 0:01:58.8]} 17... Re8 {[%clk 0:02:34.3]} 18. Qe2 {[%clk 0:01:51.6]}
18... Qd7 {[%clk 0:02:29.9]} 19. a4 {[%clk 0:01:50.7]} 19... b4 {[%clk
0:02:25.7]} 20. Rad1 {[%clk 0:01:47.5]} 20... Ne7 {[%clk 0:02:19.5]} 21. Ne5
{[%clk 0:01:41.7]} 21... Qd5 {[%clk 0:02:08.6]} 22. f3 {[%clk 0:01:41]} 22... b3
{[%clk 0:02:05.4]} 23. Bb1 {[%clk 0:01:40.4]} 23... Bxe5 {[%clk 0:01:50.5]} 24.
dxe5 {[%clk 0:01:36.4]} 24... Qc5+ {[%clk 0:01:47.6]} 25. Bf2 {[%clk 0:01:35]}
25... Qc6 {[%clk 0:01:47.6]} 26. Rd6 {[%clk 0:01:33.6]} 26... Qc8 {[%clk
0:01:40.3]} 27. Rfd1 {[%clk 0:01:29.1]} 27... Nd5 {[%clk 0:01:36.8]} 28. Rd4
{[%clk 0:01:28.6]} 28... Ba6 {[%clk 0:01:26.3]} 29. Bxf5 {[%clk 0:01:26.4]}
29... Nxc3 {[%clk 0:01:24.7]} 30. Bxh7+ {[%clk 0:01:25.3]} 30... Kxh7 {[%clk
0:01:25.6]} 31. bxc3 {[%clk 0:01:24.5]} 31... Rb8 {[%clk 0:01:21.1]} 32. Rh4+
{[%clk 0:01:20.3]} 32... Kg8 {[%clk 0:01:21.1]} 33. Qe4 {[%clk 0:01:20.6]} 33...
Rb7 {[%clk 0:01:09]} 34. Qh7+ {[%clk 0:01:19.6]} 34... Kf8 {[%clk 0:01:09.4]}
35. Rf4+ {[%clk 0:01:18.8]} 35... Rf7 {[%clk 0:01:08.7]} 36. Qh8+ {[%clk
0:01:18.8]} 36... Ke7 {[%clk 0:01:08.3]} 37. Bh4+ {[%clk 0:01:19.2]} 37... Rf6
{[%clk 0:01:06.3]} 38. Qxg7# {[%clk 0:01:18.5]} 1-0